fUST/lending_fUST_20251221
["ID","MTS","AMOUNT","RATE_DAILY","PERIOD"]
[399316989,1766288964504,3000.0,0.00032876,120]
[399316990,1766288965821,-281.44978733,0.00010444,2]
[399316991,1766288966787,169.905749,5.072e-05,2]
[399316992,1766288967017,169.905749,0.00010144,2]
[399316993,1766288968403,-261.83091403,0.00010444,2]
[399316994,1766288969836,-386.9471591,0.00010444,2]
[399316995,1766288969858,-199.02803357,0.00010444,2]
[399316996,1766288973124,4468.83269325,0.00010425,2]
[399316997,1766288973152,531.16730675,0.00010425,2]
[399316998,1766288973179,-170.6154428,0.00010444,2]
[399316999,1766288974425,-270.70932363,0.00010444,2]
[399317000,1766288974447,-5.76171124,0.00010492,2]
[399317001,1766288975989,-326.72799871,0.00010492,2]
[399317002,1766288979961,-80.8030677,0.00010492,2]
[399317003,1766288979987,-587.43984502,0.0001054,2]
[399317004,1766288982515,-242.17993096,0.0001054,2]
[399317005,1766288987261,515.94,0.00032876,120]
[399317016,1766289031599,-972.72,0.00010435,2]
[399317017,1766289031611,-4027.28,0.00010435,2]
[399317018,1766289031621,-300.0,0.00010539,2]
[399317019,1766289031629,-177478.21133552,0.0001054,2]
[399317021,1766289037110,770.1,9.241e-05,2]
[399317022,1766289037197,1540.19,0.00010081,2]
[399317043,1766289037710,-231.63083968,0.00010539,2]
[399317044,1766289037719,-500.0,0.00010539,2]
[399317045,1766289037728,-194.45808548,0.00010539,2]
[399317046,1766289037737,-550848.70034304,0.0001054,2]
[399317047,1766289037748,-1500.0,0.0001054,2]
[399317048,1766289037759,-3921.72438981,0.0001054,2]
[399317049,1766289037773,-3664.0724537,0.0001054,2]
[399317050,1766289037789,-1086.264,0.0001054,2]
[399317051,1766289037838,-161.1396266,0.0001054,2]
[399317114,1766289040109,-3e-08,0.00010539,2]
[399317116,1766289040120,-519.16379175,0.00010539,2]
[399317118,1766289040130,-35951.9247834,0.0001054,2]
[399317173,1766289041562,5000.0,0.00010395,2]
[399317218,1766289045777,-713.75585233,0.0001054,2]
[399317219,1766289046275,-9535.6678196,0.0001054,2]
[399317220,1766289046283,-574.12855637,0.00010634,2]
[399317221,1766289046292,-2773.56790519,0.00010634,2]
[399317222,1766289046302,-763.08093805,0.00010921,2]
[399317223,1766289078247,-5000.0,0.00010812,2]
[399317224,1766289089051,0.01,0.00010812,2]
[399317225,1766289089074,4999.99,0.00010812,2]
[399317226,1766289095346,5000.02,0.0001044,2]
[399317227,1766289095370,10000.01,0.0001044,2]
[399317228,1766289095395,10000.01,0.0001044,2]
[399317229,1766289095418,10000.01,0.0001044,2]
[399317230,1766289095445,10000.01,0.0001044,2]
[399317231,1766289095470,10000.01,0.0001044,2]
[399317232,1766289114840,-628.04300523,0.00010129,2]
[399317233,1766289117321,762.42,8.971e-05,2]
[399317234,1766289117549,-308.16060484,0.00010129,2]
[399317235,1766289117730,1524.83,9.786e-05,2]
[399317236,1766289120616,-4063.79638993,0.00010129,2]
[399317237,1766289120645,-237.12992336,0.00010231,2]
[399317238,1766289120687,-184.99546934,0.00010231,2]
[399317239,1766289132961,-300.0,0.00010439,2]
[399317240,1766289132985,-10.98655757,0.0001044,2]
[399317241,1766289135626,-284.38819223,0.00010335,2]
[399317242,1766289137685,-273.19444444,0.00010335,2]
[399317243,1766289140328,-284.6344141,0.00010335,2]
[399317244,1766289141972,-164.98032726,0.00010335,2]
[399317245,1766289142403,-3992.80262197,0.00010335,2]
[399317246,1766289142693,170.46215737,9.702e-05,2]
[399317247,1766289144518,681.84862949,0.00010077,2]
[399317248,1766289144703,-195.54659478,0.0001044,2]
[399317249,1766289147591,-245.26981454,0.0001044,2]
[399317250,1766289150952,-458.70872275,0.0001044,2]
[399317251,1766289152349,-404.92190428,0.0001044,2]
[399317252,1766289153899,-200.21115038,0.0001044,2]
[399317253,1766289157122,-226.6706763,0.0001044,2]
[399317254,1766289158416,1162.0939692,0.0001043,2]
[399317255,1766289158440,3837.9060308,0.0001043,2]
[399317256,1766289158749,-403.31571363,0.0001044,2]
[399317257,1766289162768,-285.88565757,0.0001044,2]
[399317258,1766289166044,-242.37310353,0.0001044,2]
[399317259,1766289170531,3679.73,0.00032876,120]
[399317260,1766289170560,3332.4048089,0.00010095,2]
[399317261,1766289181006,1816.1,0.00032877,120]
[399317262,1766289181884,2829.6991603,0.0001043,2]
[399317263,1766289181905,2170.3008397,0.0001043,2]
[399317264,1766289197779,512.35,0.0001043,2]
[399317265,1766289198105,785.85,9.014e-05,2]
[399317266,1766289198530,1571.69,9.833e-05,2]
[399317267,1766289206163,4959.8191603,0.0001043,2]
[399317268,1766289206185,40.1808397,0.0001043,2]
[399317269,1766289219935,1500.0,0.00032877,120]
[399317270,1766289223099,3642.75920613,0.0001043,2]
[399317271,1766289229470,570.08111138,9.986e-05,2]
[399317272,1766289230676,5000.0,0.0001043,2]
[399317273,1766289230975,746.98884279,0.00010355,2]
[399317274,1766289230996,279.15715769,0.00010355,2]
[399317275,1766289249676,1000.0,0.00032877,120]
[399317276,1766289278292,762.8,8.67e-05,2]
[399317277,1766289278683,1525.6,9.458e-05,2]
[399317278,1766289279092,2288.41,0.00010246,2]
[399317279,1766289353116,-472.45722105,0.00010439,2]
[399317280,1766289353146,-300.0,0.00010439,2]
[399317281,1766289353177,-300.0,0.00010439,2]
[399317282,1766289353210,-300.0,0.00010439,2]
[399317283,1766289353241,-1200.0,0.00010439,2]
[399317284,1766289354863,-162.14158778,0.00010439,2]
[399317285,1766289354891,-15.54374044,0.0001044,2]
[399317286,1766289356383,-248.95467178,0.0001044,2]
[399317287,1766289357000,739.36,8.667e-05,2]
[399317288,1766289357424,1478.72,9.454e-05,2]
[399317289,1766289357818,2218.08,0.00010242,2]
[399317290,1766289362597,300.0,0.00010439,2]
[399317291,1766289377051,-862.29522293,0.0001044,2]
[399317292,1766289377462,-10000.01,0.0001044,2]
[399317293,1766289377617,-10000.01,0.0001044,2]
[399317294,1766289377820,-10000.01,0.0001044,2]
[399317295,1766289388001,-10000.01,0.0001044,2]
[399317296,1766289388105,-10000.01,0.0001044,2]
[399317297,1766289388195,-10000.01,0.0001044,2]
[399317298,1766289388308,-10000.01,0.0001044,2]
[399317299,1766289388406,-10000.01,0.0001044,2]
[399317300,1766289394285,3526.41,0.00032876,120]
[399317301,1766289422872,167.76,0.0001,2]
[399317302,1766289429821,-241.95611196,0.00010336,2]
[399317303,1766289432452,-296.3709531,0.00010336,2]
[399317304,1766289434397,-370.73517448,0.00010336,2]
[399317305,1766289436580,788.02,9.138e-05,2]
[399317306,1766289436605,-185.84952116,0.00010336,2]
[399317307,1766289437006,1576.03,9.968e-05,2]
[399317308,1766289438394,-238.01316205,0.00010336,2]
[399317309,1766289454915,298.20853637,9.987e-05,2]
[399317310,1766289459829,-217.08893578,0.00010336,2]
[399317311,1766289459852,-119.29040482,0.00010357,2]
[399317312,1766289461456,-417.48496065,0.00010357,2]
[399317313,1766289461478,-83.76603429,0.00010439,2]
[399317314,1766289482127,-290.46925818,0.0001044,2]
[399317315,1766289483813,-393.38593051,0.00010431,2]
[399317316,1766289485662,-202.61459193,0.00010431,2]
[399317317,1766289485685,-85.05533127,0.00010439,2]
[399317318,1766289487827,-214.94466873,0.00010439,2]
[399317319,1766289487850,-66.74453771,0.0001044,2]
[399317320,1766289490420,-237.80772986,0.0001044,2]
[399317321,1766289500584,-351.67810201,0.0001044,2]
[399317322,1766289502706,-298.32210853,0.0001044,2]
[399317323,1766289507822,-470.04377759,0.0001044,2]
[399317324,1766289509937,-236.17280447,0.0001044,2]
[399317325,1766289512140,-281.41465633,0.0001044,2]
[399317326,1766289516771,824.06,8.652e-05,2]
[399317327,1766289517018,1648.11,9.438e-05,2]
[399317328,1766289517419,2472.17,0.00010225,2]
[399317329,1766289517458,-255.81622234,0.0001044,2]
[399317330,1766289520618,-207.17384502,0.0001044,2]
[399317331,1766289523090,-325.81002386,0.0001044,2]
[399317332,1766289525854,-385.76599839,0.0001044,2]
[399317333,1766289534873,-197.79623766,0.0001044,2]
[399317334,1766289537579,-202.84598999,0.0001044,2]
[399317335,1766289540248,-368.13813171,0.0001044,2]
[399317336,1766289542357,-300.0,0.00010439,2]
[399317337,1766289542382,-16.00207035,0.0001044,2]
[399317338,1766289545562,-206.8269527,0.0001044,2]
[399317351,1766289608182,972.63985794,0.0001041,2]
[399317354,1766289609249,807.35,8.697e-05,2]
[399317355,1766289609926,1614.7,9.488e-05,2]
[399317356,1766289610068,2422.05,0.00010278,2]
[399317371,1766289624777,-300.0,0.00010412,2]
[399317372,1766289624799,-147.65814952,0.00010412,2]
[399317373,1766289626615,-383.2583,0.00010412,2]
[399317374,1766289630670,4183.27014206,0.0001041,2]
[399317375,1766289638829,3379.48,0.00032876,120]
[399317376,1766289639021,5000.0,0.00010403,2]
[399317385,1766289662182,5000.0,0.00010403,2]
[399317396,1766289685055,0.01,0.00010403,2]
[399317399,1766289687339,765.85,8.732e-05,2]
[399317400,1766289688225,1531.69,9.526e-05,2]
[399317401,1766289688647,2297.54,0.0001032,2]
[399317421,1766289761836,371.87516931,9.898e-05,2]
[399317422,1766289763340,669.37530476,0.00010197,2]
[399317423,1766289767345,707.36,8.823e-05,2]
[399317424,1766289767754,1414.73,9.625e-05,2]
[399317432,1766289790539,-257.7272025,0.00010403,2]
[399317433,1766289833393,2241.58952593,0.00010402,2]
[399317434,1766289833417,2602.50047407,0.00010402,2]
[399317435,1766289837928,328.0498618,0.00010189,2]
[399317436,1766289846876,719.11,8.727e-05,2]
[399317437,1766289847415,1438.22,9.52e-05,2]
[399317438,1766289847710,2157.33,0.00010314,2]
[399317439,1766289849785,-176.18888576,0.00010403,2]
[399317440,1766289855158,-169.35873428,0.00010403,2]
[399317441,1766289857030,1022.33125792,0.00010402,2]
[399317442,1766289862548,200.0,0.00030616,120]
[399317443,1766289864692,200.0,0.00030616,120]
[399317444,1766289868631,3238.66,0.00032876,120]
[399317445,1766289874648,200.0,0.00030616,120]
[399317446,1766289881025,150.03841766,0.00032876,120]
[399317447,1766289887775,1732.46840621,0.00010402,2]
[399317448,1766289895129,150.0,9e-07,2]
[399317457,1766289925238,708.5,8.93e-05,2]
[399317458,1766289925651,1417.0,9.742e-05,2]
[399317459,1766290000088,-251.2682324,0.00010402,2]
[399317460,1766290001304,-234.16943277,0.00010402,2]
[399317461,1766290002390,-2782.09392862,0.00010402,2]
[399317462,1766290003382,-244.16714324,0.00010405,2]
[399317463,1766290004976,681.45,8.948e-05,2]
[399317464,1766290005397,1362.9,9.761e-05,2]
[399317465,1766290016455,579.0,0.00010402,2]
[399317466,1766290019076,6730.00956077,0.00032877,120]
[399317467,1766290037149,-236.09869165,0.00010405,2]
[399317468,1766290037168,-493.16021403,0.00010408,2]
[399317469,1766290037187,-383.5154,0.0001041,2]
[399317470,1766290037207,-35.08355048,0.00010412,2]
[399317471,1766290037226,-300.0,0.00010439,2]
[399317472,1766290037247,-29171.25897251,0.0001044,2]
[399317473,1766290052795,-7374.73607138,0.0001044,2]
[399317474,1766290052949,-10000.01,0.0001044,2]
[399317475,1766290053160,-10000.01,0.0001044,2]
[399317476,1766290053363,-10000.01,0.0001044,2]
[399317477,1766290065293,-185.18,0.0001044,2]
[399317478,1766290067772,10000.0,0.00032877,120]
[399317479,1766290074299,-417.73577645,0.00010199,2]
[399317480,1766290083271,239.12,4.995e-05,2]
[399317481,1766290083547,239.12,4.995e-05,2]
[399317482,1766290083827,239.12,4.995e-05,2]
[399317483,1766290084476,696.65,8.701e-05,2]
[399317484,1766290084910,1393.31,9.491e-05,2]
[399317485,1766290085318,2089.96,0.00010282,2]
[399317487,1766290094638,3103.72,0.00032876,120]
[399317499,1766290119112,4267.2584471,0.0001034,2]
[399317500,1766290119138,10000.01,0.0001034,2]
[399317502,1766290119769,-185.18,0.0001034,2]
[399317505,1766290134854,-534.53587495,0.0001034,2]
[399317506,1766290137482,10000.0,0.00032877,120]
[399317507,1766290141682,-705.31366567,0.0001034,2]
[399317508,1766290147872,-200.0,0.00010339,2]
[399317509,1766290164370,665.9,8.724e-05,2]
[399317510,1766290164785,1331.79,9.517e-05,2]
[399317511,1766290165192,1997.69,0.0001031,2]
[399317512,1766290199123,514.2,0.00032877,120]
[399317523,1766290225840,5000.0,0.0001033,2]
[399317546,1766290231781,-255.49749186,0.00010339,2]
[399317547,1766290231793,-44.50250814,0.00010339,2]
[399317549,1766290231803,-884.76,0.0001034,2]
[399317551,1766290231814,-17294.66422918,0.0001034,2]
[399317553,1766290231825,-1027.6,0.0001034,2]
[399317555,1766290231835,-975.72973871,0.0001034,2]
[399317557,1766290231847,-71161.27467576,0.0001034,2]
[399317558,1766290231856,-565.0,0.0001034,2]
[399317559,1766290231864,-361.33556674,0.00010406,2]
[399317560,1766290231873,-151.0,0.00010508,2]
[399317561,1766290231882,-307.49168884,0.00010508,2]
[399317562,1766290231892,-1761.07846219,0.00010508,2]
[399317563,1766290231901,-1361.21084715,0.00010508,2]
[399317605,1766290238095,-1412.35705804,0.00010508,2]
[399317606,1766290238104,-500.0,0.00010508,2]
[399317608,1766290238114,-500.0,0.00010508,2]
[399317610,1766290238125,-500.0,0.00010508,2]
[399317612,1766290238135,-489.76703403,0.00010508,2]
[399317791,1766290240751,-3e-08,0.00010508,2]
[399317848,1766290242975,-10.23296594,0.00010508,2]
[399317850,1766290242985,-120.2076298,0.00010508,2]
[399318056,1766290245326,716.6,8.635e-05,2]
[399318070,1766290245458,288.03,9.42e-05,2]
[399318073,1766290245483,1145.16,9.42e-05,2]
[399318150,1766290246349,2149.79,0.00010205,2]
[399318266,1766290249079,5000.0,0.0001033,2]
[399318269,1766290271683,1705.06,0.0001033,2]
[399318270,1766290271716,3294.94,0.0001033,2]
[399318271,1766290285638,-300.0,0.00010339,2]
[399318272,1766290288947,5000.0,0.0001033,2]
[399318273,1766290296810,4400.01,0.00010339,2]
[399318274,1766290296834,599.99,0.00010339,2]
[399318276,1766290307579,-7540.5515529,0.0001034,2]
[399318277,1766290307749,-10000.01,0.0001034,2]
[399318280,1766290312612,-10000.01,0.0001034,2]
[399318281,1766290312707,-10000.01,0.0001034,2]
[399318282,1766290312809,-10000.01,0.0001034,2]
[399318283,1766290313229,-1938.56274342,0.00010237,2]
[399318284,1766290313266,-6122.88451316,0.0001034,2]
[399318285,1766290313390,-10000.01,0.0001034,2]
[399318288,1766290313604,-10000.01,0.0001034,2]
[399318289,1766290314094,-10000.01,0.0001034,2]
[399318293,1766290322319,196.02,0.0001,2]
[399318294,1766290325507,711.46,8.66e-05,2]
[399318295,1766290326551,1422.93,9.447e-05,2]
[399318296,1766290344797,2974.4,0.00032876,120]
[399318297,1766290353374,-196.02,0.000102,2]
[399318298,1766290353400,-245.24631373,0.00010235,2]
[399318299,1766290355975,-398.01602104,0.00010235,2]
[399318300,1766290358583,199.58706956,0.0001019,2]
[399318301,1766290358702,-333.71653609,0.00010235,2]
[399318302,1766290361861,-248.57427326,0.00010235,2]
[399318303,1766290363590,-201.02879856,0.00010235,2]
[399318304,1766290366904,-372.24902152,0.00010235,2]
[399318306,1766290406022,697.04,8.652e-05,2]
[399318307,1766290406412,1394.08,9.439e-05,2]
[399318318,1766290461322,1559.7207234,9.372e-05,2]
[399318324,1766290474916,-309.97097848,0.00010225,2]
[399318326,1766290476986,-570.4095056,0.00010225,2]
[399318329,1766290485510,709.01,8.63e-05,2]
[399318331,1766290485918,1418.01,9.415e-05,2]
[399318332,1766290486611,2127.02,0.00010199,2]
[399318341,1766290506291,182.83,0.0001,2]
[399318342,1766290508723,182.83,0.000102,2]
[399318345,1766290517906,5000.0,0.00010215,2]
[399318352,1766290541295,380.31,0.00010215,2]
[399318355,1766290549028,-500.0104944,0.00010215,2]
[399318356,1766290551430,-220.36031465,0.00010215,2]
[399318357,1766290556433,-158.87968535,0.00010215,2]
[399318358,1766290570462,718.34,8.801e-05,2]
[399318359,1766290570854,1436.68,9.602e-05,2]
[399318360,1766290574360,2850.46,0.00032876,120]
[399318365,1766290600831,4589.07670542,0.00010197,2]
[399318366,1766290650952,709.25,8.62e-05,2]
[399318367,1766290650983,-190.21988833,0.00010082,2]
[399318368,1766290651352,1418.51,9.404e-05,2]
[399318369,1766290671641,493.09545525,9.874e-05,2]
[399318370,1766290690406,11012.0,0.000328,120]
[399318372,1766290698254,286.1,0.00032877,120]
[399318373,1766290704850,-410.67517871,0.00010188,2]
[399318374,1766290707024,-402.65934723,0.00010188,2]
[399318377,1766290708564,-206.84041916,0.00010188,2]
[399318379,1766290711605,-173.3850549,0.00010188,2]
[399318380,1766290712962,-253.63,0.00010188,2]
[399318388,1766290728501,173.68740132,0.00010082,2]
[399318389,1766290731292,694.05485569,0.00010082,2]
[399318390,1766290731736,702.49,8.624e-05,2]
[399318392,1766290732126,1404.99,9.408e-05,2]
[399318395,1766290740374,-2107.48,0.00010192,2]
[399318397,1766290743071,5000.0,0.00010178,2]
[399318406,1766290766176,5000.0,0.0001023,2]
[399318414,1766290785732,200.0,0.0003048,120]
[399318416,1766290788056,200.0,0.0003048,120]
[399318417,1766290789443,5000.0,0.0001023,2]
[399318419,1766290790195,200.0,0.0003048,120]
[399318428,1766290811431,0.01,8.628e-05,2]
[399318429,1766290811456,649.1,8.628e-05,2]
[399318430,1766290812022,1298.21,9.412e-05,2]
[399318431,1766290812474,1947.32,0.00010196,2]
[399318432,1766290812505,5000.0,0.0001023,2]
[399318436,1766290831036,2731.7,0.00032876,120]
[399318439,1766290836368,1105.38,0.0001023,2]
[399318440,1766290836392,3894.62,0.0001023,2]
[399318442,1766290841145,-486.0634127,0.0001024,2]
[399318446,1766290859082,-563.0,0.0001024,2]
[399318447,1766290859487,5000.0,0.0001024,2]
[399318449,1766290862567,1461.850858,0.00030137,120]
[399318452,1766290870712,253.73,0.0001,2]
[399318457,1766290881913,-361.3376561,0.00010261,2]
[399318458,1766290883705,5000.0,0.0001024,2]
[399318463,1766290892225,643.97,8.641e-05,2]
[399318464,1766290892634,1287.94,9.426e-05,2]
[399318465,1766290893023,1931.9,0.00010212,2]
[399318467,1766290902195,-887.57181946,0.00010272,2]
[399318471,1766290906897,5000.0,0.00010272,2]
[399318478,1766290917922,-402.03578333,0.00010305,2]
[399318479,1766290920148,-74.30636112,0.00010305,2]
[399318480,1766290920170,-300.0,0.00010338,2]
[399318481,1766290920194,-61.75075309,0.00010338,2]
[399318482,1766290932345,5000.0,0.00010305,2]
[399318483,1766290944312,-300.0,0.00010338,2]
[399318484,1766290952220,628.87469985,0.00010082,2]
[399318485,1766290952329,500.0,0.00010338,2]
[399318486,1766290952391,500.0,0.00010338,2]
[399318487,1766290952434,322.17358711,0.00010338,2]
[399318488,1766290952476,500.0,0.00010338,2]
[399318489,1766290952521,500.0,0.00010338,2]
[399318490,1766290952568,500.0,0.00010338,2]
[399318491,1766290952614,500.0,0.00010338,2]
[399318492,1766290955638,5000.0,0.00010338,2]
[399318493,1766290962148,-204.83519066,0.00010339,2]
[399318494,1766290972895,608.07,8.891e-05,2]
[399318495,1766290973318,1216.13,9.699e-05,2]
[399318496,1766290977388,164.81910719,9.46e-05,2]
[399318497,1766290978595,5000.0,0.00010339,2]
[399318498,1766290979634,296.67439294,0.00010285,2]
[399318499,1766290982600,300.0,0.00010338,2]
[399318500,1766290987409,611.0,0.00010338,2]
[399318501,1766291002386,2411.38649987,0.00010339,2]
[399318502,1766291002408,2588.61350013,0.00010339,2]
[399318505,1766291025255,5000.0,0.00010339,2]
[399318506,1766291049444,-5000.0,0.00010235,2]
[399318507,1766291050052,-300.0,0.00010338,2]
[399318508,1766291050113,-3076.89804482,0.00010339,2]
[399318509,1766291050369,-10000.01,0.00010339,2]
[399318510,1766291051458,-339.78497888,0.00010317,2]
[399318511,1766291051548,-9320.44004224,0.00010339,2]
[399318512,1766291051565,-10000.01,0.00010339,2]
[399318513,1766291051743,-10000.01,0.00010339,2]
[399318514,1766291052122,-2602.21327772,0.00010339,2]
[399318515,1766291052144,-4795.58344456,0.00010339,2]
[399318516,1766291052318,-10000.01,0.0001034,2]
[399318517,1766291052664,-10000.01,0.0001034,2]
[399318518,1766291052928,605.81,8.622e-05,2]
[399318519,1766291053309,1211.61,9.406e-05,2]
[399318520,1766291062583,-1817.42,0.0001019,2]
[399318521,1766291067413,2617.87,0.00032876,120]
[399318527,1766291097768,-161.66419053,0.00010339,2]
[399318528,1766291100495,-175.37496474,0.00010339,2]
[399318529,1766291102028,-195.8591517,0.00010339,2]
[399318530,1766291103648,-100.1408483,0.00010339,2]
[399318531,1766291103672,-169.53553006,0.00010339,2]
[399318532,1766291106188,-130.46446994,0.00010339,2]
[399318533,1766291106213,-32.0912433,0.00010339,2]
[399318534,1766291106242,-189.03545971,0.0001034,2]
[399318535,1766291127112,-329.6796504,0.0001034,2]
[399318536,1766291133267,-253.63,0.0001034,2]
[399318537,1766291135934,-335.40821522,0.0001034,2]
[399318538,1766291137859,-251.79547661,0.0001034,2]
[399318539,1766291140110,-520.27414172,0.0001034,2]
[399318540,1766291141337,1737.24,0.0003,120]
[399318541,1766291142028,574.23,8.563e-05,2]
[399318542,1766291142427,1148.47,9.341e-05,2]
[399318543,1766291142891,1722.7,0.0001012,2]
[399318545,1766291202562,-300.0,0.00010339,2]
[399318546,1766291202587,-2102.631,0.0001034,2]
[399318549,1766291221961,537.01,8.294e-05,2]
[399318550,1766291222367,1074.01,9.048e-05,2]
[399318551,1766291222763,1611.02,9.802e-05,2]
[399318557,1766291238090,-300.0,0.00010339,2]
[399318558,1766291238118,-13439.64448085,0.0001034,2]
[399318566,1766291262157,-183.24628112,0.0001034,2]
[399318567,1766291265539,314.0,0.00010301,2]
[399318568,1766291265749,-388.0294668,0.0001034,2]
[399318569,1766291265885,50000.0,0.0003287,120]
[399318570,1766291269215,-270.35160461,0.0001034,2]
[399318571,1766291270960,-661.26660395,0.0001034,2]
[399318572,1766291273321,-273.02954409,0.0001034,2]
[399318573,1766291274832,3018.57,0.00010338,2]
[399318574,1766291274857,1981.43,0.00010338,2]
[399318575,1766291280194,8018.58,0.00010239,2]
[399318576,1766291280223,10000.01,0.00010239,2]
[399318577,1766291280251,10000.01,0.00010239,2]
[399318578,1766291280280,10000.01,0.00010239,2]
[399318579,1766291280307,10000.01,0.00010239,2]
[399318580,1766291280335,10000.01,0.00010239,2]
[399318581,1766291280362,10000.01,0.00010239,2]
[399318582,1766291280392,10000.01,0.00010239,2]
[399318583,1766291280419,10000.01,0.00010239,2]
[399318584,1766291292269,-226.023665,0.00010239,2]
[399318586,1766291295367,-536.91736305,0.00010239,2]
[399318588,1766291297355,-298.31154282,0.00010239,2]
[399318589,1766291299845,-172.81535219,0.00010137,2]
[399318590,1766291301640,2508.8,0.00032876,120]
[399318591,1766291301913,288.62162188,0.0001,2]
[399318592,1766291302387,-379.78237575,0.00010137,2]
[399318593,1766291303947,-182.48553656,0.00010137,2]
[399318594,1766291304693,496.0,8.317e-05,2]
[399318595,1766291305080,992.0,9.073e-05,2]
[399318597,1766291305469,1487.99,9.829e-05,2]
[399318598,1766291307076,-287.10778875,0.00010137,2]
[399318601,1766291311217,-224.52797329,0.00010137,2]
[399318602,1766291311329,1000.0,0.0001,2]
[399318605,1766291312778,2537.16453996,0.00032,120]
[399318607,1766291317329,-637.77144976,0.00010137,2]
[399318610,1766291318929,-584.18001452,0.00010137,2]
[399318612,1766291321893,-372.9568421,0.00010137,2]
[399318613,1766291323662,-491.32744024,0.00010137,2]
[399318614,1766291325167,-410.11105542,0.00010137,2]
[399318619,1766291329447,-541.2923784,0.00010137,2]
[399318620,1766291331075,-218.85660862,0.00010137,2]
[399318621,1766291331829,-496.7851844,0.00010137,2]
[399318623,1766291332500,-350.63631067,0.00010239,2]
[399318624,1766291335755,422.7360696,0.00010082,2]
[399318625,1766291344272,5000.0,0.00010137,2]
[399318626,1766291349089,-300.0,0.00010238,2]
[399318627,1766291349111,-2389.33959434,0.00010239,2]
[399318628,1766291349363,230.17295701,9.698e-05,2]
[399318629,1766291351576,414.31132262,9.964e-05,2]
[399318630,1766291352842,736.55346244,0.00010229,2]
[399318631,1766291367270,5000.0,0.00010238,2]
[399318639,1766291390001,5000.0,0.00010239,2]
[399318641,1766291391423,745.23,8.345e-05,2]
[399318642,1766291391825,1490.46,9.103e-05,2]
[399318643,1766291392222,2235.7,9.862e-05,2]
[399318644,1766291402098,300.0,0.00010238,2]
[399318645,1766291403631,155.67,0.0001,2]
[399318646,1766291406012,72.95,0.000102,2]
[399318647,1766291406034,82.72,0.000102,2]
[399318648,1766291425327,5000.0,0.00010239,2]
[399318686,1766291431938,-648.11957244,0.00010239,2]
[399318712,1766291438053,-5004.89252433,0.00010239,2]
[399318713,1766291438065,-5689.09419536,0.00010239,2]
[399318714,1766291438115,-539.724,0.00010239,2]
[399318715,1766291438126,-2447.396,0.00010239,2]
[399318716,1766291438156,-1526.62716454,0.00010239,2]
[399318717,1766291438172,-15462.71,0.00010239,2]
[399318727,1766291440645,-3e-08,0.00010239,2]
[399318744,1766291443107,-266.959,0.00010239,2]
[399318789,1766291450639,4917.29,0.00010239,2]
[399318790,1766291450663,82.71,0.00010239,2]
[399318791,1766291462577,300.0,0.00010238,2]
[399318792,1766291465071,-4281.6923802,0.00010239,2]
[399318793,1766291465199,-10000.01,0.00010239,2]
[399318794,1766291465371,-1648.30952826,0.00010239,2]
[399318795,1766291465400,-563.0,0.00010239,2]
[399318796,1766291470953,691.74,8.333e-05,2]
[399318797,1766291471862,1383.49,9.09e-05,2]
[399318798,1766291471990,2075.23,9.848e-05,2]
[399318799,1766291474208,1426.93094348,0.00010239,2]
[399318800,1766291474234,3573.06905652,0.00010239,2]
[399318801,1766291486832,-200.0,0.00010301,2]
[399318802,1766291497591,5000.0,0.00010301,2]
[399318803,1766291502190,-200.0,0.00010329,2]
[399318804,1766291502212,-456.50371534,0.00010341,2]